fUST/lending_fUST_20250802
["ID","MTS","AMOUNT","RATE_DAILY","PERIOD"]
[376766749,1754105449528,-522.44110412,0.00023516,2]
[376766750,1754105449537,-500.0,0.00023562,2]
[376766751,1754105449546,-460.0,0.00023611,2]
[376766752,1754105449556,-2101.17,0.00023611,2]
[376766753,1754105449565,-500.0,0.00023612,2]
[376766754,1754105449574,-460.0,0.00023612,2]
[376766755,1754105449583,-567.78161,0.00023612,7]
[376766756,1754105449592,-567.78161,0.00023612,7]
[376766757,1754105449601,-897.77,0.00023612,2]
[376766758,1754105449610,-150.74836106,0.00023673,2]
[376766759,1754105449619,-567.78161,0.00023696,7]
[376766760,1754105449629,-567.78161,0.00023696,7]
[376766761,1754105449638,-1776.7,0.00023699,5]
[376766762,1754105449647,-151.0,0.000237,5]
[376766763,1754105449656,-151.0,0.000237,5]
[376766764,1754105449665,-3508.12809719,0.0002378,2]
[376766765,1754105449675,-1529.91,0.000238,7]
[376766766,1754105449684,-151.0,0.000238,6]
[376766767,1754105449692,-500.0,0.00023836,2]
[376766768,1754105449701,-2121.0382571,0.00023847,2]
[376766769,1754105449711,-460.0,0.00023885,2]
[376766770,1754105449720,-2101.17,0.00023885,2]
[376766771,1754105449729,-290.99460687,0.00023886,2]
[376766772,1754105449738,-559.73181478,0.00023886,2]
[376766773,1754105449748,-897.77,0.00023886,2]
[376766774,1754105449757,-151.0,0.00023886,7]
[376766775,1754105449767,-600.0,0.00023891,2]
[376766776,1754105449776,-11322.97,0.000239,2]
[376766777,1754105449785,-567.78161,0.000239,7]
[376766778,1754105449794,-567.78161233,0.000239,7]
[376766779,1754105449803,-350.0,0.00023981,2]
[376766780,1754105449814,-216.22890603,0.00024,7]
[376766781,1754105449824,-1023.74008946,0.00024,7]
[376766782,1754105449835,-841.70373825,0.00024,7]
[376766783,1754105449845,-1776.7,0.00024085,5]
[376766784,1754105449855,-151.0,0.000241,8]
[376766785,1754105449865,-151.0,0.000241,6]
[376766786,1754105449874,-500.0,0.0002411,2]
[376766787,1754105449884,-460.0,0.00024159,2]
[376766788,1754105449893,-2101.17,0.00024159,2]
[376766789,1754105449903,-897.77,0.0002416,2]
[376766790,1754105449913,-355.73532526,0.0002416,2]
[376766791,1754105449923,-151.0,0.000242,5]
[376766792,1754105449933,-1000000.0,0.000243,2]
[376766793,1754105449943,-200.0,0.00024313,15]
[376766794,1754105449953,-200.0,0.00024313,15]
[376766795,1754105449962,-200.0,0.00024313,15]
[376766796,1754105449971,-200.0,0.00024313,15]
[376766797,1754105449981,-200.0,0.00024313,15]
[376766798,1754105449991,-200.0,0.00024313,15]
[376766799,1754105450006,-200.0,0.00024313,15]
[376766800,1754105450016,-200.0,0.00024313,15]
[376766801,1754105450026,-358.0,0.00024313,15]
[376766802,1754105450035,-221.60766466,0.00024325,7]
[376766803,1754105450044,-500.0,0.00024383,10]
[376766804,1754105450054,-500.0,0.00024383,10]
[376766805,1754105450063,-500.0,0.00024383,10]
[376766806,1754105450073,-500.0,0.00024383,10]
[376766807,1754105450082,-500.0,0.00024383,10]
[376766808,1754105450091,-500.0,0.00024383,10]
[376766809,1754105450101,-500.0,0.00024383,10]
[376766810,1754105450110,-500.0,0.00024383,10]
[376766811,1754105450120,-500.0,0.00024383,10]
[376766812,1754105450129,-500.0,0.00024383,10]
[376766813,1754105450138,-500.0,0.00024383,10]
[376766814,1754105450148,-500.0,0.00024383,10]
[376766815,1754105450157,-500.0,0.00024383,10]
[376766816,1754105450166,-500.0,0.00024383,10]
[376766817,1754105450175,-500.0,0.00024383,10]
[376766818,1754105450187,-500.0,0.00024383,10]
[376766819,1754105450196,-500.0,0.00024383,10]
[376766820,1754105450206,-500.0,0.00024383,10]
[376766821,1754105450215,-326.41566526,0.00024383,10]
[376766822,1754105450226,-500.0,0.00024384,2]
[376766823,1754105450235,-642.95,0.000244,7]
[376766824,1754105450244,-841.70373825,0.000244,10]
[376766825,1754105450253,-527.02465094,0.000244,10]
[376766826,1754105450262,-460.0,0.00024433,2]
[376766827,1754105450271,-2101.17,0.00024433,2]
[376766828,1754105450280,-897.77,0.00024434,2]
[376766829,1754105450289,-155.71,0.00024438,7]
[376766830,1754105450298,-1776.7,0.00024472,6]
[376766831,1754105450309,-151.0,0.000245,8]
[376766832,1754105450320,-151.0,0.000245,8]
[376766833,1754105450329,-451.5166519,0.00024528,2]
[376766834,1754105450338,-155.73,0.00024538,7]
[376766835,1754105450347,-163.45821398,0.00024583,2]
[376766836,1754105450356,-5520.93,0.000246,7]
[376766837,1754105450365,-163.589845,0.000246,2]
[376766838,1754105450374,-151.0,0.000246,8]
[376766839,1754105450383,-150.0,0.00024646,2]
[376766840,1754105450391,-476.34523505,0.0002465,2]
[376766841,1754105450401,-152.252431,0.00024658,7]
[376766842,1754105450410,-500.0,0.00024658,2]
[376766843,1754105450419,-460.0,0.00024707,2]
[376766844,1754105450428,-2101.17,0.00024707,2]
[376766845,1754105450437,-897.77,0.00024708,2]
[376766846,1754105450446,-32488.8876233,0.000248,2]
[376766847,1754105450454,-170.51088868,0.00024832,2]
[376766848,1754105450463,-2121.0382571,0.00024832,2]
[376766849,1754105450472,-1776.7,0.00024858,6]
[376766850,1754105450482,-1000.0,0.000249,2]
[376766851,1754105450491,-1000.0,0.000249,2]
[376766852,1754105450500,-1000.0,0.000249,2]
[376766853,1754105450510,-1000.0,0.000249,2]
[376766854,1754105450520,-1000.0,0.000249,2]
[376766855,1754105450529,-1000.0,0.000249,2]
[376766856,1754105450540,-1000.0,0.000249,2]
[376766857,1754105450549,-1000.0,0.000249,2]
[376766858,1754105450558,-1000.0,0.000249,2]
[376766859,1754105450567,-1000.0,0.000249,2]
[376766860,1754105450576,-1000.0,0.000249,2]
[376766861,1754105450585,-1000.0,0.000249,2]
[376766862,1754105450595,-1000.0,0.000249,2]
[376766863,1754105450605,-1000.0,0.000249,2]
[376766864,1754105450614,-1000.0,0.000249,2]
[376766865,1754105450624,-1000.0,0.000249,2]
[376766866,1754105450635,-1000.0,0.000249,2]
[376766867,1754105450647,-1000.0,0.000249,2]
[376766868,1754105450657,-1000.0,0.000249,2]
[376766869,1754105450666,-1000.0,0.000249,2]
[376766870,1754105450675,-1000.0,0.000249,2]
[376766871,1754105450684,-1000.0,0.000249,2]
[376766872,1754105450693,-1000.0,0.000249,2]
[376766873,1754105450702,-1000.0,0.000249,2]
[376766874,1754105450711,-1000.0,0.000249,2]
[376766875,1754105450720,-160.0,0.000249,7]
[376766876,1754105450731,-1006.13,0.000249,2]
[376766877,1754105450751,-343223.867134,0.000249,2]
[376766878,1754105450759,-500.0,0.00024932,2]
[376766879,1754105450768,-152.47,0.00024935,7]
[376766880,1754105450777,-155.43,0.00024939,7]
[376766881,1754105450787,-460.0,0.00024981,2]
[376766882,1754105450796,-2101.17,0.00024981,2]
[376766883,1754105450805,-897.77,0.00024982,2]
[376766884,1754105450815,-2499.14520179,0.0002499,2]
[376766885,1754105450824,-13340.33189721,0.00025,2]
[376766886,1754105450833,-38345.97604751,0.00025,4]
[376766887,1754105450849,-152.47,0.00025035,7]
[376766888,1754105450868,-155.0,0.00025042,2]
[376766889,1754105450887,-152.47,0.00025135,7]
[376766890,1754105450896,-1529.91,0.000252,7]
[376766891,1754105450908,-500.0,0.00025206,2]
[376766892,1754105450918,-152.47,0.00025235,7]
[376766893,1754105450927,-1776.7,0.00025245,6]
[376766894,1754105450937,-417.82289263,0.00025255,2]
[376766895,1754105450946,-2101.17,0.00025255,2]
[376766896,1754105450955,-897.77,0.00025256,2]
[376766897,1754105450964,-2499.14520179,0.0002529,2]
[376766898,1754105450973,-11322.97,0.000253,2]
[376766899,1754105450983,-152.47,0.00025335,7]
[376766900,1754105450992,-152.47,0.00025435,7]
[376766901,1754105451094,-160.0,0.0002545,3]
[376766902,1754105451103,-500.0,0.0002548,2]
[376766903,1754105451112,-2101.17,0.00025529,2]
[376766904,1754105451121,-686.54920654,0.0002553,2]
[376766905,1754105451131,-897.77,0.0002553,2]
[376766906,1754105451140,-152.47,0.00025535,7]
[376766907,1754105451149,-1776.7,0.00025632,6]
[376766908,1754105451158,-152.47,0.00025635,7]
[376766909,1754105451168,-153.26375,0.00025678,10]
[376766910,1754105451177,-708.16620632,0.00025731,5]
[376766911,1754105451186,-152.47,0.00025735,7]
[376766912,1754105451196,-500.0,0.00025754,2]
[376766913,1754105451205,-642.95,0.000258,7]
[376766914,1754105451214,-2101.17,0.00025803,2]
[376766915,1754105451222,-897.77,0.00025804,2]
[376766916,1754105451231,-152.47,0.00025835,7]
[376766917,1754105451240,-160.0,0.00025851,4]
[376766918,1754105451250,-152.47,0.00025935,7]
[376766919,1754105451259,-201.0,0.0002597,15]
[376766920,1754105451268,-1000.0,0.00026,7]
[376766921,1754105451277,-5520.93,0.00026,7]
[376766922,1754105451286,-1776.7,0.00026018,7]
[376766923,1754105451296,-500.0,0.00026028,2]
[376766924,1754105451305,-152.47,0.00026035,7]
[376766925,1754105451314,-2101.17,0.00026077,2]
[376766926,1754105451323,-500.0,0.00026078,120]
[376766927,1754105451332,-500.0,0.00026078,120]
[376766928,1754105451341,-500.0,0.00026078,120]
[376766929,1754105451350,-500.0,0.00026078,120]
[376766930,1754105451359,-500.0,0.00026078,120]
[376766931,1754105451368,-500.0,0.00026078,120]
[376766932,1754105451377,-500.0,0.00026078,120]
[376766933,1754105451385,-500.0,0.00026078,120]
[376766934,1754105451394,-342.95,0.00026078,120]
[376766935,1754105451406,-500.0,0.00026078,120]
[376766936,1754105451417,-500.0,0.00026078,120]
[376766937,1754105451426,-500.0,0.00026078,120]
[376766938,1754105451434,-500.0,0.00026078,120]
[376766939,1754105451443,-500.0,0.00026078,120]
[376766940,1754105451452,-500.0,0.00026078,120]
[376766941,1754105451461,-500.0,0.00026078,120]
[376766942,1754105451469,-500.0,0.00026078,120]
[376766943,1754105451479,-897.87716905,0.00026078,2]
[376766944,1754105451488,-600.0,0.00026083,2]
[376766945,1754105451497,-250.61592133,0.00026127,2]
[376766946,1754105451506,-152.47,0.00026135,7]
[376766947,1754105451515,-200.0,0.00026166,120]
[376766948,1754105451524,-152.64,0.00026235,7]
[376766949,1754105451533,-160.0,0.00026251,5]
[376766950,1754105451542,-150.0,0.00026252,2]
[376766951,1754105451551,-2147.0,0.00026269,2]
[376766952,1754105451560,-152.0,0.000263,120]
[376766953,1754105451569,-151.0,0.000263,12]
[376766954,1754105451580,-232.0,0.00026302,2]
[376766955,1754105451589,-2101.37101516,0.00026351,2]
[376766956,1754105451598,-200.0,0.00026392,120]
[376766957,1754105451607,-1776.7,0.00026405,7]
[376766958,1754105451616,-153.26375,0.00026431,10]
[376766959,1754105451625,-970.0,0.00026489,2]
[376766960,1754105451634,-635.0,0.00026489,2]
[376766961,1754105451643,-407.0,0.00026489,2]
[376766962,1754105451652,-1000000.0,0.000265,4]
[376766963,1754105451660,-200.0,0.00026529,120]
[376766964,1754105451670,-153.26375,0.00026575,2]
[376766965,1754105451678,-800.0,0.00026597,2]
[376766966,1754105451687,-1529.91,0.000266,7]
[376766967,1754105451697,-200.0,0.00026637,120]
[376766968,1754105451707,-160.0,0.00026651,6]
[376766969,1754105451716,-153.26375,0.00026666,7]
[376766970,1754105451726,-2499.14520179,0.00026683,2]
[376766971,1754105451736,-200.0,0.00026694,15]
[376766972,1754105451748,-200.0,0.00026694,15]
[376766973,1754105451757,-200.0,0.00026694,15]
[376766974,1754105451766,-200.0,0.00026694,15]
[376766975,1754105451775,-200.0,0.00026694,15]
[376766976,1754105451785,-200.0,0.00026694,15]
[376766977,1754105451795,-200.0,0.00026694,15]
[376766978,1754105451805,-200.0,0.00026694,15]
[376766979,1754105451815,-200.0,0.00026694,15]
[376766980,1754105451826,-200.0,0.00026694,15]
[376766981,1754105451836,-200.0,0.00026694,15]
[376766982,1754105451847,-200.0,0.00026694,15]
[376766983,1754105451857,-342.0,0.00026694,15]
[376766984,1754105451866,-11322.97,0.000267,2]
[376766985,1754105451875,-1776.7,0.00026791,7]
[376766986,1754105451886,-198.65723895,0.00026812,2]
[376766987,1754105451896,-322.63710872,0.00026842,2]
[376766988,1754105451906,-150.0,0.00026887,2]
[376766989,1754105451916,-158.0,0.00027,30]
[376766990,1754105451926,-158.0,0.00027,31]
[376766991,1754105451936,-157.0,0.00027,30]
[376766992,1754105451946,-157.0,0.00027,30]
[376766993,1754105451954,-157.0,0.00027,30]
[376766994,1754105451964,-157.0,0.00027,30]
[376766995,1754105451973,-157.0,0.00027,31]
[376766996,1754105451982,-157.0,0.00027,33]
[376766997,1754105451991,-157.0,0.00027,35]
[376766998,1754105452003,-157.0,0.00027,35]
[376766999,1754105452012,-157.0,0.00027,30]
[376767000,1754105452021,-157.0,0.00027,30]
[376767001,1754105452031,-854.24429729,0.00027,120]
[376767002,1754105452040,-300.0,0.00027,120]
[376767003,1754105452049,-1034.0,0.00027,30]
[376767004,1754105452058,-501.71709699,0.00027,2]
[376767005,1754105452067,-312.16666667,0.00027,3]
[376767006,1754105452077,-232.14485874,0.00027,2]
[376767007,1754105452087,-4404.98812702,0.00027037,2]
[376767008,1754105452096,-163.45821398,0.00027037,2]
[376767009,1754105452106,-4998.29040358,0.0002704,2]
[376767010,1754105452115,-67749.1386521,0.0002705,7]
[376767011,1754105452124,-160.0,0.00027052,7]
[376767012,1754105452132,-162.1604438,0.00027052,5]
[376767013,1754105452142,-398.48181718,0.00027064,30]
[376767014,1754105452151,-4007.0,0.0002707,30]
[376767015,1754105452161,-672.6129216,0.0002707,120]
[376767016,1754105452170,-500.0,0.0002707,10]
[376767017,1754105452180,-500.98096344,0.00027076,10]
[376767018,1754105452188,-155.0,0.00027079,30]
[376767019,1754105452199,-2000.0,0.000271,2]
[376767020,1754105452208,-728.85,0.000271,2]
[376767021,1754105452217,-1009.318079,0.000271,5]
[376767022,1754105452233,-534.0,0.000271,2]
[376767023,1754105452242,-538.0,0.000271,2]
[376767024,1754105452251,-538.0,0.000271,2]
[376767025,1754105452260,-538.0,0.000271,2]
[376767026,1754105452269,-538.0,0.000271,2]
[376767027,1754105452278,-538.0,0.000271,2]
[376767028,1754105452287,-538.0,0.000271,2]
[376767029,1754105452297,-538.0,0.000271,2]
[376767030,1754105452309,-538.0,0.000271,2]
[376767031,1754105452321,-538.0,0.000271,2]
[376767032,1754105452334,-470.98635025,0.000271,2]
[376767033,1754105452345,-538.0,0.000271,2]
[376767034,1754105452357,-538.0,0.000271,2]
[376767035,1754105452368,-538.0,0.000271,2]
[376767036,1754105452378,-538.0,0.000271,2]
[376767037,1754105452388,-504.49317513,0.000271,2]
[376767038,1754105452401,-538.0,0.000271,2]
[376767039,1754105452412,-538.0,0.000271,2]
[376767040,1754105452423,-252.24658756,0.000271,2]
[376767041,1754105452434,-664.12329378,0.000271,2]
[376767042,1754105452444,-332.06164689,0.000271,2]
[376767043,1754105452456,-166.03082345,0.000271,2]
[376767044,1754105452468,-500.0,0.00027133,120]
[376767045,1754105452480,-500.0,0.00027133,120]
[376767046,1754105452491,-996.21472823,0.00027134,30]
[376767047,1754105452503,-1201752.60687297,0.00027137,20]
[376767065,1754105759291,2172.0,0.00026027,120]
[376767114,1754106218362,1112.0784864,0.00027104,30]
[376767116,1754106393138,-460.0,0.00019776,2]
[376767117,1754106393161,-460.0,0.0002005,2]
[376767118,1754106393182,-666.0,0.0002006,2]
[376767119,1754106393205,-460.0,0.00020324,2]
[376767120,1754106393227,-460.0,0.00020598,2]
[376767121,1754106393250,-460.0,0.00020872,2]
[376767122,1754106393273,-460.0,0.00021146,2]
[376767123,1754106393294,-1200.0,0.00021161,2]
[376767124,1754106393315,-300.0,0.00021162,2]
[376767125,1754106393337,-300.0,0.00021162,2]
[376767126,1754106393360,-300.0,0.00021162,2]
[376767127,1754106393381,-300.0,0.00021162,2]
[376767128,1754106393403,-1200.0,0.00021162,2]
[376767129,1754106393423,-466.4980736,0.00021162,2]
[376767130,1754106393444,-460.0,0.00021162,2]
[376767131,1754106393464,-460.0,0.00021162,2]
[376767132,1754106393484,-460.0,0.00021162,2]
[376767133,1754106393506,-464.08104323,0.00021162,2]
[376767134,1754106393527,-464.60928695,0.00021162,2]
[376767135,1754106393549,-4999.78826322,0.00021163,2]
[376767182,1754106632031,-215.0795835,0.00021316,2]
[376767184,1754106632040,-841.70373825,0.00021316,2]
[376767186,1754106632050,-400.84821991,0.00021316,2]
[376767211,1754106638043,-60.01463467,0.00021316,2]
[376767212,1754106638052,-1260.99155333,0.00021316,2]
[376767213,1754106638063,-4630.00643768,0.00021316,2]
[376767214,1754106638075,-963.85330514,0.00021316,2]
[376767215,1754106638086,-1281.878382,0.00021316,2]
[376767216,1754106638098,-4510.14471828,0.00021316,2]
[376767217,1754106638108,-180.57777827,0.00021319,2]
[376767218,1754106638116,-2205.95499273,0.00021419,2]
[376767219,1754106638127,-456.01454053,0.00021419,2]
[376767231,1754106640082,-4924.8520801,0.00021579,2]
[376767233,1754106640092,-200.0,0.00021846,15]
[376767234,1754106640102,-200.0,0.00021846,15]
[376767235,1754106640112,-200.0,0.00021846,15]
[376767236,1754106640122,-200.0,0.00021846,15]
[376767237,1754106640132,-200.0,0.00021846,15]
[376767238,1754106640141,-365.0,0.00022,2]
[376767239,1754106640151,-658.829,0.00022225,2]
[376767240,1754106640161,-365.0,0.00023,2]
[376767241,1754106640171,-183.8,0.00023007,5]
[376767242,1754106640180,-500.0,0.00023343,2]
[376767243,1754106640190,-183.8,0.00023386,5]
[376767244,1754106640199,-183.8,0.00023765,5]
[376767245,1754106640209,-441.01407127,0.00023804,2]
[376767246,1754106640218,-2147.0,0.00023891,2]
[376767247,1754106640228,-635.0,0.00023891,2]
[376767248,1754106640237,-970.0,0.00023891,2]
[376767249,1754106640248,-200.0,0.00023978,15]
[376767250,1754106640257,-200.0,0.00023978,15]
[376767251,1754106640267,-200.0,0.00023978,15]
[376767252,1754106640277,-200.0,0.00023978,15]
[376767253,1754106640287,-200.0,0.00023978,15]
[376767254,1754106640297,-200.0,0.00023978,15]
[376767255,1754106640307,-200.0,0.00023978,15]
[376767256,1754106640317,-183.8,0.00024144,5]
[376767257,1754106640326,-365.0,0.00024212,2]
[376767258,1754106640335,-500.96990266,0.000243,2]
[376767259,1754106640345,-183.8,0.00024523,6]
[376767260,1754106640354,-565.99,0.00024657,10]
[376767261,1754106640363,-460.0,0.00024657,10]
[376767262,1754106640373,-460.0,0.00024657,10]
[376767263,1754106640383,-460.0,0.00024657,10]
[376767264,1754106640392,-460.0,0.00024657,10]
[376767265,1754106640402,-460.0,0.00024657,10]
[376767266,1754106640411,-460.0,0.00024657,10]
[376767267,1754106640421,-460.0,0.00024657,10]
[376767268,1754106640431,-210.39,0.00024657,10]
[376767270,1754106640440,-460.0,0.00024657,10]
[376767272,1754106640450,-181.70184155,0.00024657,10]
[376767274,1754106640462,-278.29815845,0.00024657,10]
[376767276,1754106640471,-460.0,0.00024657,10]
[376767278,1754106640481,-481.62,0.00024657,10]
[376767280,1754106640495,-460.0,0.00024657,10]
[376767282,1754106640504,-219.61186615,0.00024657,10]
[376767284,1754106640515,-240.38813385,0.00024657,10]
[376767286,1754106640524,-17.83186615,0.00024657,10]
[376767539,1754106645930,-442.16813385,0.00024657,10]
[376767540,1754106645939,-460.0,0.00024657,10]
[376767541,1754106645948,-460.0,0.00024657,10]
[376767542,1754106645957,-282.38482915,0.00024657,10]
[376767543,1754106645968,-177.61517085,0.00024657,10]
[376767544,1754106645977,-460.0,0.00024657,10]
[376767545,1754106645986,-460.0,0.00024657,10]
[376767546,1754106645994,-460.0,0.00024657,10]
[376767547,1754106646003,-589.17,0.00024657,10]
[376767548,1754106646012,-460.0,0.00024657,10]
[376767549,1754106646021,-460.0,0.00024657,10]
[376767550,1754106646030,-460.0,0.00024657,10]
[376767551,1754106646039,-460.0,0.00024657,10]
[376767552,1754106646047,-460.0,0.00024657,10]
[376767553,1754106646056,-460.0,0.00024657,10]
[376767554,1754106646065,-460.0,0.00024657,10]
[376767555,1754106646074,-460.0,0.00024657,10]
[376767556,1754106646082,-183.8,0.00024903,6]
[376767557,1754106646092,-183.8,0.00025282,6]
[376767558,1754106646101,-365.0,0.00025318,7]
[376767559,1754106646110,-500.0,0.00025535,2]
[376767560,1754106646118,-183.8,0.00025661,7]
[376767561,1754106646127,-183.8,0.0002604,7]
[376767562,1754106646136,-640.95166485,0.00026287,2]
[376767563,1754106646145,-200.0,0.00026318,15]
[376767564,1754106646154,-200.0,0.00026318,15]
[376767565,1754106646163,-200.0,0.00026318,15]
[376767566,1754106646172,-200.0,0.00026318,15]
[376767567,1754106646181,-200.0,0.00026318,15]
[376767568,1754106646190,-200.0,0.00026318,15]
[376767569,1754106646199,-200.0,0.00026318,15]
[376767570,1754106646208,-200.0,0.00026318,15]
[376767571,1754106646216,-358.0,0.00026318,15]
[376767572,1754106646225,-183.8,0.0002642,7]
[376767573,1754106646234,-365.0,0.00026425,7]
[376767574,1754106646244,-186.66324238,0.00026575,10]
[376767575,1754106646253,-153.26375,0.00026651,6]
[376767576,1754106646262,-183.8,0.00026799,7]
[376767577,1754106646271,-575.535653,0.0002689,2]
[376767578,1754106646280,-510.13630912,0.0002689,2]
[376767579,1754106646289,-500.0,0.0002689,2]
[376767580,1754106646299,-459.19027875,0.0002689,2]
[376767581,1754106646308,-1143.12126508,0.00026891,2]
[376767582,1754106646319,-1003.87873492,0.00026891,2]
[376767583,1754106646328,-635.0,0.00026891,2]
[376767584,1754106646339,-970.0,0.00026891,2]
[376767585,1754106646347,-183.77776858,0.000269,2]
[376767586,1754106646357,-183.77776858,0.00026935,2]
[376767587,1754106646366,-183.77776858,0.0002697,2]
[376767588,1754106646375,-162.04,0.00026978,10]
[376767589,1754106646384,-460.0,0.00026978,10]
[376767590,1754106646393,-427.75,0.00026978,10]
[376767591,1754106646403,-11562.28940166,0.0002698,2]
[376767592,1754106646414,-18741.15596644,0.0002698,2]
[376767594,1754106812312,151.0,0.00026027,120]
[376767595,1754107041625,247.3,0.00026027,120]
[376767754,1754107838253,-162.3,0.00023011,5]
[376767755,1754107838262,-500.0,0.00023343,2]
[376767756,1754107838272,-180.10611,0.00023355,2]
[376767757,1754107838282,-162.3,0.0002339,5]
[376767758,1754107838291,-173.14176154,0.00023561,2]
[376767759,1754107838300,-162.3,0.00023769,5]
[376767760,1754107838310,-300.0,0.00023889,2]
[376767761,1754107838319,-300.0,0.00023889,2]
[376767762,1754107838328,-300.0,0.00023889,2]
[376767763,1754107838338,-300.0,0.00023889,2]
[376767764,1754107838347,-300.0,0.00023889,2]
[376767765,1754107838356,-1200.0,0.00023889,2]
[376767766,1754107838365,-16818.37922448,0.00023889,2]
[376767767,1754107838375,-1475.10563948,0.00023891,2]
[376767768,1754107838460,-671.89436052,0.00023891,2]
[376767769,1754107838470,-970.0,0.00023891,2]
[376767770,1754107838479,-635.0,0.00023891,2]
[376767771,1754107838489,-407.0,0.00023891,2]
[376767772,1754107838498,-162.3,0.00024147,5]
[376767773,1754107838507,-200.0,0.00024367,15]
[376767774,1754107838516,-66.05563948,0.00024367,15]
[376767788,1754107840235,-133.94436052,0.00024367,15]
[376767789,1754107840247,-200.0,0.00024367,15]
[376767790,1754107840256,-200.0,0.00024367,15]
[376767791,1754107840265,-200.0,0.00024367,15]
[376767792,1754107840274,-162.3,0.00024526,6]
[376767793,1754107840285,-150.0,0.000246,2]
[376767794,1754107840295,-3676.7,0.00024647,10]
[376767795,1754107840305,-527.063,0.00024655,7]
[376767796,1754107840314,-2072.4954097,0.00024657,2]
[376767797,1754107840324,-157.42474251,0.00024657,10]
[376767798,1754107840333,-468.1105277,0.00024657,10]
[376767799,1754107840343,-460.0,0.00024657,10]
[376767800,1754107840352,-460.0,0.00024657,10]
[376767801,1754107840361,-461.7927339,0.00024657,10]
[376767802,1754107840371,-460.0,0.00024657,10]
[376767803,1754107840380,-539.94,0.00024657,10]
[376767804,1754107840389,-459.96791807,0.00024657,10]
[376767805,1754107840399,-462.54302894,0.00024657,10]
[376767806,1754107840407,-469.11718811,0.00024657,10]
[376767807,1754107840417,-464.95343318,0.00024657,10]
[376767808,1754107840426,-460.0,0.00024657,10]
[376767809,1754107840435,-460.0,0.00024657,10]
[376767810,1754107840445,-460.0,0.00024657,10]
[376767811,1754107840454,-463.7177727,0.00024657,10]
[376767812,1754107840463,-462.23928253,0.00024657,10]
[376767813,1754107840472,-462.53614366,0.00024657,10]
[376767814,1754107840482,-462.79815172,0.00024657,10]
[376767815,1754107840491,-325.47944206,0.00024657,10]
[376767816,1754107840500,-461.59464601,0.00024657,10]
[376767817,1754107840509,-465.97291717,0.00024657,10]
[376767818,1754107840519,-464.97913412,0.00024657,10]
[376767819,1754107840528,-468.16918279,0.00024657,10]
[376767820,1754107840537,-264.01395176,0.00024657,2]
[376767821,1754107840546,-479.06,0.00024657,10]
[376767822,1754107840556,-461.59990891,0.00024657,10]
[376767823,1754107840566,-461.13601245,0.00024657,10]
[376767824,1754107840575,-468.64354089,0.00024657,10]
[376767825,1754107840584,-460.0,0.00024657,10]
[376767826,1754107840594,-460.0,0.00024657,10]
[376767827,1754107840603,-462.40865336,0.00024657,10]
[376767828,1754107840612,-460.0,0.00024657,10]
[376767829,1754107840621,-461.21295849,0.00024657,10]
[376767830,1754107840630,-460.0,0.00024657,10]
[376767831,1754107840639,-460.0,0.00024657,10]